[Event "FTX Crypto Cup MCCT 2022"]
[Site "Miami"]
[Date "2022.08.11"]
[Round "3.2"]
[White "Carlsen, Magnus"]
[Black "Aronian, Levon"]
[Result "1/2-1/2"]
[ECO "E90"]
[WhiteElo "2864"]
[BlackElo "2775"]
[Annotator "TA"]
[PlyCount "136"]
[EventDate "2022.08.10"]
[EventType "tourn"]
[EventCountry "USA"]
[SourceTitle "playchess.com"]
[Source "ChessBase"]
[SourceQuality "1"]
[TimeControl "900+10"]

{[%evp 12,135,35,32,42,37,36,8,39,34,29,27,32,33,104,75,69,60,68,32,32,28,52,25,31,12,21,3,6,11,47,36,31,29,30,32,37,33,55,34,64,0,2,5,12,0,12,12,12,0,0,0,0,0,0,0,0,0,0,0,0,0,0,0,0,0,0,0,0,0,0,0,0,0,0,0,45,45,45,15,15,15,15,0,0,0,0,0,0,0,0,0,0,0,0,0,0,0,0,0,0,0,0,0,0,0,0,0,0,0,0,0,0,0,0,0,0,0,0,0,0,0,0,0,0,0]} 1. d4 {[%emt 0:00:00]} Nf6 {[%emt 0:00:00]} 2. Nf3 {[%emt 0:00:08]} g6 {[%emt 0:00:05]} 3. c4 {[%emt 0:01:30]} Bg7 {[%emt 0:00:03]} 4. Nc3 {[%emt 0:00:01]} O-O {[%emt 0:00:03]} 5. e4 {[%emt 0:00:01]} d6 {[%emt 0:00:01]} 6. Bd3 {[%emt 0:00:43]} e5 {[%emt 0:00:13]} 7. d5 {[%emt 0:00:20]} Nh5 {[%emt 0:00:17] E90: King's Indian: Classical: Early deviations and 6 h3.} 8. g3 {[%emt 0:00:16]} Na6 {[%emt 0:00:24]} 9. Be2 {[%emt 0:00:21]} Qe8 {[%emt 0:00:37]} 10. Be3 {[%emt 0:01:13]} f5 {[%emt 0:00:03]} 11. exf5 {[%emt 0:00:02] [#]} Bxf5 $146 {[%emt 0:00:01]} ({Predecessor:} 11... gxf5 12. Nh4 Nf6 13. Qd2 Nc5 14. O-O-O Nfe4 15. Nxe4 Nxe4 16. Qc2 c6 17. Rhg1 cxd5 18. Rxd5 {0-1 (42) Rudolph,S (1910)-Daverkausen,B (2137) Berlin 2015}) 12. Ng5 {[%emt 0:01:07]} Nb4 {[%emt 0:00:48]} ({Black should play} 12... Nf6 $14) 13. Nge4 {[%emt 0:00:30]} Nf6 {[%emt 0:02:06]} 14. f3 {[%emt 0:00:08]} a5 {[%emt 0:00:48]} 15. Nxf6+ {[%emt 0:00:37]} Bxf6 {[%emt 0:00:02]} 16. Ne4 $1 {[%emt 0:00:09]} Be7 {[%emt 0:00:26]} 17. O-O {[%emt 0:00:32][%cal Be1g1,Bg1f1,Bf1g2][%mdl 32]} b6 {[%emt 0:00:02]} 18. g4 {[%emt 0:01:00]} Bxe4 {[%emt 0:00:53]} 19. fxe4 {[%emt 0:00:02]} Rxf1+ {[%emt 0:00:01]} 20. Kxf1 {[%emt 0:00:03][%cal Oc4c5]} h6 {[%emt 0:01:41]} 21. Qd2 {[%emt 0:00:43]} ({Of course not} 21. Bxh6 g5 22. a3 Na6 $17) (21. c5 $5) 21... Bg5 {[%emt 0:00:02]} 22. Bxg5 {[%emt 0:00:04]} hxg5 {[%emt 0:00:00]} 23. a3 {[%emt 0:00:13]} (23. Kg2 {feels hotter.} Kg7 24. a3 Na6 25. Qxg5 Nc5 26. Rf1) 23... Na6 {[%emt 0:00:02][%cal Bb4a6,Ba6c5,Bc5e4][%mdl 32]} 24. Qxg5 {[%emt 0:00:24]} Nc5 {[%emt 0:00:03]} 25. Kg2 {[%emt 0:00:02]} ({Reject} 25. Qe3 Qa4 $11) (25. Kg1 {keeps more tension.} Nxe4 26. Qh6 Qf7 27. Rf1) 25... Nxe4 {[%emt 0:00:49]} 26. Qe3 {[%emt 0:01:38]} ({White should try} 26. Qh6 $14 Qf7 27. Rf1) 26... Nc5 $11 {[%emt 0:00:02]} 27. Rf1 {[%emt 0:00:05] [#] Strongly threatening Qh6.} Qe7 {[%emt 0:00:01]} 28. b4 {[%emt 0:01:02]} axb4 {[%emt 0:00:04]} 29. axb4 {[%emt 0:00:08]} Nd7 {[%emt 0:00:01]} 30. Qe4 {[%emt 0:01:17]} Nf8 {[%emt 0:02:59]} 31. Kg3 {[%emt 0:00:33]} Ra3+ {[%emt 0:00:26]} 32. Rf3 {[%emt 0:00:08] Active counter play!} Rxf3+ {[%emt 0:00:08]} 33. Qxf3 {[%emt 0:01:16][%mdl 4096] Endgame KQB-KQN} e4 {[%emt 0:00:23]} 34. Qf4 {[%emt 0:00:04]} Nh7 {[%emt 0:00:55]} 35. h4 {[%emt 0:00:11]} g5 {[%emt 0:00:03]} 36. hxg5 {[%emt 0:00:01]} Nxg5 {[%emt 0:00:01]} 37. Qf5 {[%emt 0:00:07]} Kg7 {[%emt 0:00:03]} 38. Kf4 {[%emt 0:00:04]} Kh6 {[%emt 0:01:26]} 39. Ke3 {[%emt 0:01:17]} Qg7 {[%emt 0:00:12]} 40. Kf4 {[%emt 0:00:03]} Nh3+ {[%emt 0:00:47]} 41. Kxe4 {[%emt 0:01:16][%csl Ge2,Gg4][%cal Rf5h5] [#]} Ng5+ {[%emt 0:00:02]} 42. Kd3 {[%emt 0:00:03]} Qb2 {[%emt 0:00:02]} 43. Bd1 {[%emt 0:00:28]} Qg7 {[%emt 0:01:42] Inhibits Qf8.} 44. Qf4 {[%emt 0:01:22]} Qg6+ {[%emt 0:00:55]} 45. Kc3 {[%emt 0:00:08] With the idea Bc2.} Kg7 $1 {[%emt 0:00:01] The position is equal.} 46. Qe3 {[%emt 0:00:17]} Nf7 $1 {[%emt 0:00:12]} 47. c5 {[%emt 0:00:41]} bxc5 {[%emt 0:01:09]} 48. bxc5 {[%emt 0:00:00]} (48. Bc2 {with more complications.} cxb4+ 49. Kb3 Qxg4 50. Qe7) 48... Qf6+ {[%emt 0:00:18]} 49. Qd4 {[%emt 0:00:15]} Ne5 {[%emt 0:00:01]} 50. cxd6 {[%emt 0:00:09]} cxd6 {[%emt 0:00:02]} 51. Bc2 {[%emt 0:00:11]} Qf3+ {[%emt 0:00:07]} 52. Kb2 {[%emt 0:00:09]} Qxg4 {[%emt 0:00:02]} 53. Qxg4+ {[%emt 0:00:01]} Nxg4 {[%emt 0:00:01] KB-KN} 54. Kc3 {[%emt 0:00:01]} Ne3 {[%emt 0:00:02]} 55. Be4 {[%emt 0:00:03]} Kf6 {[%emt 0:00:02]} 56. Kd4 {[%emt 0:00:01]} Nf5+ {[%emt 0:00:00]} 57. Bxf5 {[%emt 0:00:02]} Kxf5 {[%emt 0:00:01] KP-KP} 58. Kd3 {[%emt 0:00:00]} Ke5 {[%emt 0:00:00]} 59. Ke3 {[%emt 0:00:01]} Kxd5 {[%emt 0:00:01] KP-K} 60. Kd3 {[%emt 0:00:00]} Ke5 {[%emt 0:00:00][%cal Bd5e5,Be5e4,Be4d4,Bd4e3,Be3d3][%mdl 32]} 61. Ke3 {[%emt 0:00:01]} d5 {[%emt 0:00:00][%cal Bd6d5,Bd5d4,Bd4d3,Bd3d2][%mdl 32]} 62. Kd3 {[%emt 0:00:01]} d4 {[%emt 0:00:00]} 63. Kd2 {[%emt 0:00:01]} Ke4 {[%emt 0:00:00]} 64. Ke2 {[%emt 0:00:00]} d3+ {[%emt 0:00:00]} 65. Kd2 {[%emt 0:00:02]} Kd4 {[%emt 0:00:00]} 66. Kd1 {[%emt 0:00:00]} Ke3 {[%emt 0:00:00] ( -> ...d2)} (66... Ke4 $5) 67. Ke1 {[%emt 0:00:01]} d2+ {[%emt 0:00:00]} 68. Kd1 {[%emt 0:00:01]} Kd3 {[%emt 0:00:00] Weighted Error Value: White=0.07 (flawless) /Black=0.05 (flawless)} 1/2-1/2

[Event "FTX Crypto Cup MCCT 2022"]
[Site "Miami"]
[Date "2022.08.11"]
[Round "3.2"]
[White "Firouzja, Alireza"]
[Black "Giri, Anish"]
[Result "1/2-1/2"]
[ECO "E46"]
[WhiteElo "2793"]
[BlackElo "2760"]
[Annotator "TA"]
[PlyCount "112"]
[EventDate "2022.08.10"]
[EventType "tourn"]
[EventCountry "USA"]
[SourceTitle "playchess.com"]
[Source "ChessBase"]
[SourceQuality "1"]
[TimeControl "900+10"]

{[%evp 11,112,6,16,0,0,0,0,0,0,0,-2,-38,-17,-73,-65,-100,-48,-68,0,9,194,199,197,140,120,141,127,0,0,-55,-56,-104,-56,-55,-50,-197,-216,-174,-180,-213,-206,-200,-172,-173,-54,-131,-84,-258,-28,-43,-43,-30,-31,-36,-16,-20,-18,-17,-35,-34,0,-32,-24,-20,-25,-81,-77,-110,-55,-59,-59,-59,-59,-59,-59,-90,-75,-75,-74,-72,-42,-42,-30,-60,-65,-65,-65,-65,-65,-61,-59,-58,-55,-65,-60,-98,-98,-98,-81,-80,16,16,23]} 1. d4 {[%emt 0:00:00]} Nf6 {[%emt 0:00:00]} 2. c4 {[%emt 0:00:04]} e6 {[%emt 0:00:02]} 3. Nc3 {[%emt 0:00:01]} Bb4 {[%emt 0:00:13]} 4. e3 {[%emt 0:00:01]} O-O {[%emt 0:00:07]} 5. Bd2 {[%emt 0:00:03]} d5 {[%emt 0:00:34]} 6. a3 {[%emt 0:00:05]} Be7 {[%emt 0:00:51]} 7. Nf3 {[%emt 0:00:04] E46: Nimzo-Indian: Rubinstein: 4 e3 0-0 5 Ne2 without early Bd3.} Nbd7 {[%emt 0:00:37]} 8. cxd5 {[%emt 0:01:07]} exd5 {[%emt 0:00:05]} 9. Bd3 {[%emt 0:00:05]} c6 {[%emt 0:00:07]} 10. Qc2 {[%emt 0:00:21] [#]} Bd6 $146 {[%emt 0:02:51]} ({Predecessor:} 10... Re8 11. O-O Nb6 12. Rfc1 h6 13. h3 Be6 14. Na4 Nxa4 15. Qxa4 Ne4 16. Be1 Bf6 {1-0 (36) McDonald,D (1307)-Esposito,D (1477) Tuggeranong 2013}) 11. g4 {[%emt 0:00:28]} g6 {[%emt 0:00:11]} 12. h4 {[%emt 0:02:56]} (12. h3 $11) 12... Nxg4 $17 {[%emt 0:00:03]} 13. h5 {[%emt 0:00:02][%cal Rh5g6]} Qf6 {[%emt 0:00:03]} (13... Qe7 $17 {And now ...Ndf6 would win.} 14. Kf1 Ndf6) 14. Ke2 $1 $15 {[%emt 0:00:57]} Nb6 {[%emt 0:01:54]} (14... Qe7 $1 $15 15. Rag1 Ndf6) 15. Rag1 $1 $11 {[%emt 0:00:23]} c5 $2 {[%emt 0:00:47]} (15... Re8 $11 {and Black stays safe.}) 16. dxc5 $18 {[%emt 0:00:47]} Bxc5 {[%emt 0:00:03]} 17. Rh4 {[%emt 0:02:51]} (17. Nxd5 Nxd5 18. Qxc5 Bf5 $14) (17. Nd1 $1 $18 Be7 18. Bc3) 17... Ne5 $16 {[%emt 0:01:02]} 18. Rf4 {[%emt 0:01:10] Active counter play!} Qe7 {[%emt 0:00:19]} 19. Nb5 {[%emt 0:01:10]} (19. Nxe5 $1 $16 {[%cal Rh5g6]} Qxe5 20. Rh4) 19... Nbc4 $1 $36 {[%emt 0:01:46][%mdl 2048] White is under pressure.} 20. Ng5 {[%emt 0:03:52]} (20. b4 $11 Nxd3 21. Qxd3 Nxd2 22. Kxd2) 20... Nxd2 $15 {[%emt 0:01:34]} (20... Nxd3 21. Qxd3 Ne5 22. Qxd5 Bg4+ 23. Rgxg4 $11 (23. Rfxg4 Rad8 $15)) 21. Qxd2 {[%emt 0:01:25]} (21. Kxd2 $15 Bd7 22. Qb3) 21... Bd7 {[%emt 0:02:31]} (21... h6 $17 22. Nf3 g5 23. Nxe5 Qxe5) 22. Nc7 {[%emt 0:00:36]} Rad8 $1 {[%emt 0:00:32]} (22... Bg4+ 23. Rgxg4 Qxc7 24. hxg6 fxg6 25. Ne6 $14) 23. Nxd5 {[%emt 0:00:09] [#]} (23. hxg6 $15 hxg6 24. Qc2) 23... Bg4+ $1 $19 {[%emt 0:00:03][%mdl 512]} 24. Rfxg4 {[%emt 0:00:20]} Rxd5 {[%emt 0:00:01]} 25. hxg6 {[%emt 0:00:08]} hxg6 {[%emt 0:00:40]} (25... Nxd3 26. gxh7+ Kh8 27. Qc3+ Qe5 28. Ne4 Qxc3 29. bxc3 Nc1+ 30. Rxc1 $18) 26. Re4 {[%emt 0:00:12][%cal Od2c3]} Qf6 {[%emt 0:01:35]} ({Not} 26... Rxd3 27. Qxd3 Nxd3 28. Rxe7 Bxe7 29. Kxd3 $11) (26... Re8 27. Qc3 Rxd3 28. Qxd3 Nxd3 29. Rxe7 Nf4+ 30. Kf3 Bxe7 31. Kxf4 $15) 27. Qc3 {[%emt 0:00:05] Threatens to win with Bc4.} Rfd8 {[%emt 0:00:29]} (27... Be7 $19 28. Rxe5 Qxe5 29. Qxe5 Rxe5) 28. Rxe5 {[%emt 0:00:14]} (28. Rf4 $1 $15 Qh8 29. Be4 Qh5+ 30. Nf3 Rd2+ 31. Qxd2 Rxd2+ 32. Kxd2) 28... Rxe5 {[%emt 0:00:22]} (28... Qxe5 $142 29. Qxe5 Rxe5) 29. Bc4 $2 {[%emt 0:00:08] [#]} (29. Nf3 $17 {might work better.} Re6 30. Qxc5 Rxd3 31. Kxd3 Qxf3 32. Qc8+ Kh7 33. Qd8) 29... Rd7 $2 {[%emt 0:00:13]} (29... Bd4 $1 $19 {[%cal Rd4c3]} 30. Nxf7 Bxc3 31. Rxg6+ Qxg6 32. Nxe5+ Kg7 33. Nxg6 Rd2+ 34. Kf3 Bxb2) 30. Ne4 {[%emt 0:00:15]} Qf5 {[%emt 0:00:05] White must now prevent ...Qh5+.} 31. Rxg6+ $1 {[%emt 0:00:01]} Qxg6 {[%emt 0:00:25]} 32. Qxe5 {[%emt 0:00:02]} Qg4+ {[%emt 0:00:01]} (32... Be7 $5 {[%cal Rg6g4]}) 33. f3 {[%emt 0:00:00]} Qg2+ {[%emt 0:00:00]} 34. Nf2 {[%emt 0:00:01] Qe8+ is the strong threat. Dancing on a razor blade.} Bf8 {[%emt 0:00:10]} 35. Qf5 {[%emt 0:00:11]} Re7 {[%emt 0:00:02]} (35... Rc7 $5 {[%cal Rc7c4]} 36. b3 Qg7 $17) 36. Bd3 {[%emt 0:00:15][%csl Gd3][%cal Rf5h7]} Qg7 {[%emt 0:00:03] Against Qh7+} 37. Ng4 {[%emt 0:00:32]} Re6 {[%emt 0:00:00]} 38. Kf1 {[%emt 0:00:09]} (38. b3 $11 {remains equal.}) 38... Rc6 $17 {[%emt 0:00:25]} 39. f4 {[%emt 0:00:12]} Rb6 {[%emt 0:00:30]} ({Black should try} 39... Rg6 $17 40. Bc4 Rxg4 41. Bxf7+ Qxf7 42. Qxg4+ Bg7) 40. Bc4 {[%emt 0:00:09]} Qg6 $1 {[%emt 0:00:19]} (40... Rxb2 {[#] gets mated.} 41. Nh6+ $1 {[%mdl 512]} (41. Nf6+ $2 Kh8 $19) 41... Kh8 42. Nxf7+ Kg8 43. Ne5+ Kh8 44. Ng6+) 41. Qxg6+ {[%emt 0:00:12]} Rxg6 $15 {[%emt 0:00:00][%mdl 4096] Endgame KRB-KBN} 42. Ne5 {[%emt 0:00:03][%csl LRf7,LRg6]} Rf6 {[%emt 0:00:07]} 43. Bd5 {[%emt 0:00:11]} Kg7 {[%emt 0:00:08]} 44. Ke2 {[%emt 0:00:15]} Bd6 {[%emt 0:00:20]} 45. Nf3 {[%emt 0:00:09]} b5 {[%emt 0:00:12]} 46. Nd4 {[%emt 0:00:03]} b4 {[%emt 0:00:07]} 47. axb4 {[%emt 0:00:03]} Bxb4 {[%emt 0:00:00]} 48. Nc6 {[%emt 0:00:17]} Bc5 {[%emt 0:00:08]} 49. b4 {[%emt 0:00:01]} Bb6 {[%emt 0:00:03]} 50. Ne5 {[%emt 0:00:20]} Bc7 {[%emt 0:00:02] Strongly threatening ...Bxe5.} 51. Nc6 {[%emt 0:00:05]} Rd6 {[%emt 0:00:29]} 52. e4 {[%emt 0:00:03]} Bb6 {[%emt 0:00:23]} 53. f5 {[%emt 0:00:17]} f6 {[%emt 0:00:09]} 54. Kd3 {[%emt 0:00:02]} Kf8 {[%emt 0:00:03]} 55. Kc4 {[%emt 0:00:04]} Rxc6+ {[%emt 0:00:11]} 56. Bxc6 $11 {[%emt 0:00:08]} Ke7 {[%emt 0:00:01] What a bad dream for Black.  Weighted Error Value: White=0.25 (precise) /Black=0.30} 1/2-1/2

[Event "FTX Crypto Cup MCCT 2022"]
[Site "Miami"]
[Date "2022.08.11"]
[Round "3.2"]
[White "Duda, Jan-Krzysztof"]
[Black "Le, Quang Liem"]
[Result "0-1"]
[ECO "C54"]
[WhiteElo "2750"]
[BlackElo "2722"]
[Annotator "TA"]
[PlyCount "106"]
[EventDate "2022.08.10"]
[EventType "tourn"]
[EventCountry "USA"]
[SourceTitle "playchess.com"]
[Source "ChessBase"]
[SourceQuality "1"]
[TimeControl "900+10"]

{[%evp 14,106,17,14,23,19,33,22,42,0,-2,0,10,8,11,-25,-20,-10,-47,-133,-156,-130,-137,-133,-94,-178,-12,29,0,0,0,0,24,14,39,-12,3,0,0,0,0,-53,-47,-166,-175,-166,-174,-233,-220,-219,-218,-201,-208,-214,-166,-236,-229,-402,-395,-506,-494,-504,-507,-497,-476,-591,-591,-584,-584,-584,-584,-584,-584,-820,-768,-12842,-12843,-12843,-12843,-12843,-12841,-12841,-12840,-12841,-12841,-12841,-12842,-12842,-12843,-12848,-12846,-12847,-12846,-12848,-12848]} 1. e4 {[%emt 0:00:00]} e5 {[%emt 0:00:00]} 2. Nf3 {[%emt 0:00:03]} Nc6 {[%emt 0:00:02]} 3. Bc4 {[%emt 0:00:00]} Nf6 {[%emt 0:00:03]} 4. d3 {[%emt 0:00:04]} Bc5 {[%emt 0:00:02]} 5. O-O {[%emt 0:00:08]} d6 {[%emt 0:00:05]} 6. c3 {[%emt 0:00:04]} O-O {[%emt 0:00:08]} 7. Bg5 {[%emt 0:00:07]} h6 {[%emt 0:00:03]} 8. Bh4 {[%emt 0:00:01]} a5 {[%emt 0:00:04] C54: Giuoco Piano: 4 c3 Nf6, main lines with 5 d4 and 5 d3.} 9. Nbd2 {[%emt 0:00:21]} Ba7 $5 {[%emt 0:00:07][%mdl 4] An interesting side line.} 10. Re1 {[%emt 0:00:26]} g5 {[%emt 0:00:15] The position is equal.} 11. Bg3 {[%emt 0:00:01]} (11. Nxg5 $5 hxg5 12. Bxg5 $11) 11... Nh7 {[%emt 0:00:45]} 12. Nf1 {[%emt 0:00:22]} h5 {[%emt 0:01:24] Strongly threatening ...h4.} 13. h4 {[%emt 0:00:34]} g4 $1 {[%emt 0:00:12]} 14. N3d2 {[%emt 0:00:01]} Ne7 {[%emt 0:00:15][%cal Bc6e7,Be7g6,Bg6h4][%mdl 32]} 15. d4 {[%emt 0:00:17]} Ng6 {[%emt 0:00:06] [#]} 16. Qc2 $146 {[%emt 0:02:33]} ({Better is} 16. Ne3 $15) ({Predecessor:} 16. dxe5 dxe5 17. Ne3 Bxe3 18. Rxe3 Qf6 19. Qf1 Nxh4 20. f3 Ng6 21. fxg4 hxg4 22. Rd1 Nf4 23. Qf2 Ng5 24. Bh4 Kg7 25. Kf1 Qh6 26. Ree1 {0-1 (26) Oomen,A (2041)-Tieken,F (2233) ICCF email 2017}) 16... Nxh4 $17 {[%emt 0:02:22]} 17. dxe5 {[%emt 0:00:08]} Ng6 $1 {[%emt 0:00:13] aiming for ...h4.} 18. exd6 {[%emt 0:00:12]} h4 $1 {[%emt 0:00:07]} 19. dxc7 {[%emt 0:01:08] [#]} (19. Bh2 $17 {keeps fighting.}) 19... Qe7 $2 {[%emt 0:00:09]} (19... Qg5 $1 $19 20. Qd3 (20. Bd6 $2 Qf6 $19) 20... hxg3 21. Qxg3 Bb6) 20. Bh2 $11 {[%emt 0:00:33]} ({Avoid the trap} 20. e5 $2 hxg3 21. Nxg3 (21. Qxg6+ $2 Kh8 $19) 21... Kh8 $19) 20... g3 {[%emt 0:00:54]} 21. Nxg3 {[%emt 0:00:03]} hxg3 {[%emt 0:00:01] The board is on fire.} 22. Bxg3 {[%emt 0:00:00]} Bb6 {[%emt 0:00:56]} 23. e5 {[%emt 0:00:27]} Be6 {[%emt 0:00:04]} 24. Qb3 {[%emt 0:03:30]} (24. Bxe6 $14 Qxe6 25. Ne4) 24... Ra6 {[%emt 0:03:05][%cal Ba8a6,Ba6b6,Bb6b2][%mdl 32]} 25. Rad1 {[%emt 0:00:22]} Bxc7 {[%emt 0:00:38]} 26. Qxb7 {[%emt 0:01:05]} Rb6 {[%emt 0:00:05]} 27. Qe4 {[%emt 0:00:03]} (27. Qf3 $1 $11) 27... Rxb2 $15 {[%emt 0:00:08] And now ...Ng5 would win.} 28. Nf3 {[%emt 0:00:07] White is now going downhill.} ({White should try} 28. Bxe6 $1 $15 Qxe6 29. Nf3) 28... Ng5 $36 {[%emt 0:02:40][%mdl 2048] Black is on the roll.} 29. Nxg5 {[%emt 0:00:36]} Qxg5 {[%emt 0:00:00]} 30. Rd3 {[%emt 0:05:47]} (30. Bxe6 {is a better defense.} fxe6 31. Rb1 Rxb1 32. Qxb1) 30... Bf5 {[%emt 0:01:02]} 31. Qe3 {[%emt 0:00:10]} Qxe3 {[%emt 0:00:06]} 32. Rdxe3 {[%emt 0:00:00]} Be6 {[%emt 0:00:46]} 33. Re4 {[%emt 0:00:03]} Bb6 {[%emt 0:00:19]} 34. Rd1 {[%emt 0:00:08]} (34. Bxe6 $142 fxe6 35. R1e2 Rb1+ 36. Re1) 34... Kg7 {[%emt 0:00:56]} 35. a4 $2 {[%emt 0:00:28]} (35. Re2 Rxe2 36. Bxe2) 35... Rc2 {[%emt 0:00:41]} 36. Bxe6 {[%emt 0:00:49]} fxe6 {[%emt 0:00:00] Black is clearly winning.} 37. Rg4 {[%emt 0:00:01]} Bxf2+ {[%emt 0:01:15]} 38. Bxf2 {[%emt 0:00:01]} Rfxf2 {[%emt 0:00:08]} ({Wrong is} 38... Rcxf2 $2 39. Rd6 R8f4 40. Rxf4 Rxf4 41. Rxe6 $19) 39. Rd6 {[%emt 0:00:38] [#]} Rf4 $1 {[%emt 0:00:23]} 40. Rg3 {[%emt 0:00:18]} Rc1+ {[%emt 0:00:16]} 41. Kh2 {[%emt 0:00:00]} Rh4+ {[%emt 0:00:01]} 42. Rh3 {[%emt 0:00:01]} Rxh3+ {[%emt 0:00:01]} 43. gxh3 {[%emt 0:00:02]} Rxc3 {[%emt 0:00:30] Hoping for ...Nf4.} 44. Rxe6 {[%emt 0:00:12] [#]} Rxh3+ $3 {[%emt 0:00:02][%mdl 4608] Endgame KRN-KR} 45. Kg1 {[%emt 0:00:15]} Rh5 {[%emt 0:00:14]} 46. Ra6 {[%emt 0:00:03]} Rxe5 {[%emt 0:00:06]} 47. Kf2 {[%emt 0:00:00]} Kf7 {[%emt 0:00:08]} 48. Kf3 {[%emt 0:00:01]} Ne7 {[%emt 0:00:18]} 49. Kf4 {[%emt 0:00:02]} Rh5 {[%emt 0:00:01]} 50. Ke3 {[%emt 0:00:18]} Ke8 {[%emt 0:00:04]} 51. Ra7 {[%emt 0:00:06]} Kd8 {[%emt 0:00:03]} 52. Kd3 {[%emt 0:00:02]} Nc6 {[%emt 0:00:02]} 53. Rg7 {[%emt 0:00:35]} Rh4 {[%emt 0:00:02] Weighted Error Value: White=0.53/Black=0.10 (very precise)} 0-1

[Event "FTX Crypto Cup MCCT 2022"]
[Site "Miami"]
[Date "2022.08.11"]
[Round "3.2"]
[White "Praggnanandhaa R"]
[Black "Niemann, Hans Moke"]
[Result "1-0"]
[ECO "D35"]
[WhiteElo "2648"]
[BlackElo "2688"]
[Annotator "TA"]
[PlyCount "111"]
[EventDate "2022.08.10"]
[EventType "tourn"]
[EventCountry "USA"]
[SourceTitle "playchess.com"]
[Source "ChessBase"]
[SourceQuality "1"]
[TimeControl "900+10"]

{[%evp 18,111,27,26,27,25,25,20,25,25,25,20,75,67,71,26,41,30,30,30,70,39,79,62,89,90,106,97,104,101,121,83,111,111,111,111,151,153,144,111,112,99,114,114,114,107,114,114,114,114,161,161,225,233,259,187,187,184,310,300,370,370,362,362,362,298,362,310,318,325,527,522,534,527,530,529,512,502,473,441,600,562,634,558,647,641,621,616,821,810,776,766,2411,877,2314,1573]} 1. d4 {[%emt 0:00:00]} Nf6 {[%emt 0:00:00]} 2. c4 {[%emt 0:00:07]} e6 {[%emt 0:00:02]} 3. Nc3 {[%emt 0:00:01]} d5 {[%emt 0:00:30]} 4. cxd5 {[%emt 0:00:02]} exd5 {[%emt 0:00:00]} 5. Bg5 {[%emt 0:00:01]} c6 {[%emt 0:00:01]} 6. e3 {[%emt 0:00:01]} Bf5 {[%emt 0:00:01]} 7. Qf3 {[%emt 0:00:01]} Bg6 {[%emt 0:00:01]} 8. Bxf6 {[%emt 0:00:01]} Qxf6 {[%emt 0:00:02]} 9. Qxf6 {[%emt 0:00:00]} gxf6 {[%emt 0:00:00]} 10. h4 {[%emt 0:00:01]} h5 {[%emt 0:00:28] 10...h5 is better than 10...Nd7. D35: Queen's Gambit Declined: Exchange Variation.} 11. Nh3 {[%emt 0:00:05]} Bd6 {[%emt 0:00:10]} 12. g3 {[%emt 0:00:01]} Nd7 {[%emt 0:00:08] The position is equal.} 13. Kd2 $5 {[%emt 0:00:06][%cal Be1d2,Bd2e2,Be2f2][%mdl 4] [#] Exploring less charted territory.} Ke7 $146 {[%emt 0:00:18]} ({Predecessor:} 13... Nf8 14. a3 Ne6 15. Nf4 Ke7 16. Re1 Rad8 17. Bd3 Bxf4 18. exf4 Bxd3 19. Kxd3 f5 {½-½ (29) Troia,E (2313)-Sciallero,V (2204) ICCF email 2013}) 14. Re1 {[%emt 0:00:23]} f5 {[%emt 0:02:03]} (14... Nb6 $11 {remains equal.}) 15. Nf4 $16 {[%emt 0:00:53]} Nf6 {[%emt 0:00:59]} 16. f3 {[%emt 0:00:16]} Bh7 {[%emt 0:00:26]} 17. Ke2 {[%emt 0:00:21]} a5 {[%emt 0:00:39]} 18. Kf2 {[%emt 0:00:32]} a4 {[%emt 0:00:05]} 19. Bd3 {[%emt 0:00:18]} Kd7 {[%emt 0:00:41]} 20. Rc1 {[%emt 0:00:36]} b5 {[%emt 0:00:45]} 21. Bb1 {[%emt 0:02:38]} Rhg8 {[%emt 0:01:03]} 22. Nce2 {[%emt 0:00:26]} Rge8 {[%emt 0:02:15]} 23. Nd3 {[%emt 0:00:18]} Kc7 {[%emt 0:02:03]} 24. Rc3 {[%emt 0:00:52]} Kb6 {[%emt 0:00:16]} 25. Rhc1 {[%emt 0:00:04]} Rac8 {[%emt 0:00:03]} 26. Nef4 {[%emt 0:00:50]} Bg6 {[%emt 0:00:30]} 27. Nc5 {[%emt 0:00:33] Pair of Knights!} Re7 {[%emt 0:01:03]} 28. Bd3 {[%emt 0:01:00]} Bxf4 {[%emt 0:00:33]} 29. exf4 {[%emt 0:01:15]} Ra7 {[%emt 0:00:06]} 30. Bf1 {[%emt 0:00:32]} Ne8 {[%emt 0:00:23]} 31. Nd3 {[%emt 0:01:06] White is more active.} Nd6 {[%emt 0:00:14]} 32. Nb4 {[%emt 0:00:14][%cal Rc3c6]} Rac7 {[%emt 0:00:09]} 33. b3 $36 {[%emt 0:01:09][%mdl 2048] White has strong initiative.} axb3 {[%emt 0:00:11]} (33... a3 $16 34. Re3 Re8) 34. axb3 $18 {[%emt 0:00:08]} f6 {[%emt 0:00:12]} (34... Nb7 $142 35. Ke3 (35. Ra1 Nd8 $16) 35... Bh7) 35. Ra1 {[%emt 0:00:16][%cal Bc1a1,Ba1a6,Ba6b6][%mdl 32]} Be8 {[%emt 0:01:30]} 36. Ra6+ {[%emt 0:00:22]} Kb7 {[%emt 0:00:03]} 37. Rc2 {[%emt 0:00:21][%cal Bc3c2,Bc2a2,Ba2a7][%mdl 32] Rca2 is the strong threat.} Rd8 {[%emt 0:00:52]} (37... Re7 $142 38. Be2 Bd7) 38. Rca2 {[%emt 0:00:38]} Kc8 {[%emt 0:00:05]} 39. Nd3 {[%emt 0:00:48] [#] Hoping for Nc5.} Nb7 {[%emt 0:00:54]} 40. Bh3 {[%emt 0:00:08]} Bg6 {[%emt 0:00:05]} 41. Rb6 {[%emt 0:00:54]} Kd7 {[%emt 0:01:04]} 42. Ra7 {[%emt 0:00:12]} Rb8 {[%emt 0:00:02]} 43. Nb4 {[%emt 0:01:38] And now Na6 would win.} Na5 $2 {[%emt 0:00:02]} (43... Nd6 {was worth a try.}) 44. Rxc7+ {[%emt 0:00:04] White is clearly winning.} ({Less strong is} 44. Rba6 Rbb7 45. Rxb7 Nxb7 $16) 44... Kxc7 {[%emt 0:00:03]} 45. Ra6 {[%emt 0:00:01]} Nxb3 {[%emt 0:00:14]} 46. Rxc6+ {[%emt 0:00:20]} Kb7 {[%emt 0:00:03]} 47. Rxf6 {[%emt 0:00:06]} Be8 {[%emt 0:00:01]} 48. Rxf5 {[%emt 0:00:26]} Rd8 {[%emt 0:00:22]} 49. Ke3 {[%emt 0:00:43]} Rc8 {[%emt 0:00:25]} 50. Nxd5 {[%emt 0:00:03]} Rc1 {[%emt 0:00:06]} 51. Re5 {[%emt 0:00:09]} Bc6 {[%emt 0:00:03]} 52. Be6 {[%emt 0:00:45]} Rc4 {[%emt 0:00:02]} 53. f5 {[%emt 0:00:30]} Nxd4 {[%emt 0:00:17]} 54. Ne7 {[%emt 0:00:07]} Nxf3 {[%emt 0:00:01] [#]} 55. Nxc6 {[%emt 0:00:17]} (55. Rxb5+ $142 $3 {[%mdl 512]} Bxb5 56. Bxc4 (56. Kxf3 Rc1 $16) 56... Bxc4 57. Kxf3) 55... Kxc6 {[%emt 0:00:15]} 56. Kxf3 {[%emt 0:00:02] Weighted Error Value: White=0.11 (very precise) /Black=0.31} 1-0